Cogmind - Beta 15 @@@ ROGUE MODE // 2025.06.16 @ 21:00:09 Player: Envian Result: Destroyed by G-34 Mercenary with Small Laser Performance ------------- Evolutions (1) 500 Regions Visited (3) 600 Robots Destroyed (66) 330 Value Destroyed (1398) 1398 Prototype IDs (1) 20 Alien Tech Used (0) 0 Bonus (0) 0 TOTAL SCORE: 2848 Bonus ------- None Cogmind --------- Core Integrity 0/400 Matter 300/300 Energy 90/100 System Corruption 0% Temperature Cool (6) Movement Walking (120) Location -9/Materials Parts ------- > --- POWER (1) -------- (None) > --- PROPULSION (2) --- Improved Aluminum Leg Improved Aluminum Leg > --- UTILITY (4) ------ Large Storage Unit Weight Redist. System > --- WEAPON (2) ------- Great Maul > --- INVENTORY (15) --- Improved Ion Engine Cooled Ion Engine Cooled Ion Engine Faulty Cooled Ion Engine Aluminum Leg Improved Flight Unit ECM Suite Reaction Control System Improved EM Shotgun Faulty Improved EM Shotgun Improved EM Shotgun Mining Claw Explosive Trap Explosive Trap Peak State ------------ > --- POWER ------------ Improved Ion Engine > --- PROPULSION ------- Improved Aluminum Leg Improved Aluminum Leg > --- UTILITY ---------- Large Storage Unit Weight Redist. System Structural Scanner Seismic Detector > --- WEAPON ----------- Grenade Launcher Great Maul > --- INVENTORY -------- Improved Ion Engine Cooled Ion Engine Cooled Ion Engine Cooled Ion Engine Aluminum Leg Improved Flight Unit ECM Suite Reaction Control System Improved EM Shotgun Improved EM Shotgun Improved EM Shotgun Mining Claw Explosive Trap Explosive Trap [Rating: 18] Favorites ----------- Power Ion Engine Engine Ion Engine Propulsion Aluminum Leg Treads Light Treads Leg Aluminum Leg Utility Structural Scanner Device Structural Scanner Storage Large Storage Unit Protection Light Armor Plating Weapon Hammer Energy Gun Beam Rifle Ballistic Gun Heavy Assault Rifle Launcher Grenade Launcher Impact Weapon Hammer Build | -11 -10 -10 -9 ------- Run | Yrd Mat Min Mat Slots Evolved 2 | . . . 2 Power . | . . . . Propulsion . | . . . . Utility 2 | . . . 2 Weapon . | . . . . Parts Attached 35 | 9 9 4 13 Power 6 | 1 2 1 2 Engine 6 | 1 2 1 2 Core . | . . . . Reactor . | . . . . Propulsion 10 | 4 2 1 3 Treads 2 | 2 . . . Leg 8 | 2 2 1 3 Wheel . | . . . . Hover . | . . . . Flight . | . . . . Utility 9 | 2 2 . 5 Device 4 | 1 1 . 2 Storage 2 | 1 1 . . Processor . | . . . . Hackware . | . . . . Protection 3 | . . . 3 Artifact . | . . . . Weapon 10 | 2 3 2 3 Energy Gun 3 | 1 1 . 1 Energy Cannon . | . . . . Ballistic Gun 3 | 1 . 2 . Ballistic Cannon . | . . . . Launcher 1 | . . . 1 Special Weapon . | . . . . Impact Weapon 3 | . 2 . 1 Slashing Weapon . | . . . . Piercing Weapon . | . . . . Special Melee Weapon . | . . . . Unidentified Prototypes . | . . . . Parts Lost 21 | . 5 1 15 Power 6 | . 3 . 3 Propulsion 6 | . 2 1 3 Utility 5 | . . . 5 Weapon 4 | . . . 4 Highest Loss Streak 7 | . 3 1 7 To Critical Strikes . | . . . . Average Backups 8 | . 7 7 10 Power . | . . . 2 Propulsion 2 | . 2 2 3 Utility 2 | . 2 3 2 Weapon 2 | . 2 2 3 Tool/Special . | . . . . Unused Backups 13 | . . 1 12 Power 4 | . . . 4 Propulsion 3 | . . 1 2 Utility 2 | . . . 2 Weapon 4 | . . . 4 Tool/Special . | . . . . Average Slot Usage (%) 91 | . 93 86 91 Engine 7 | . 8 1 10 Leg 25 | . 27 27 21 Device 16 | . 14 14 20 Storage 12 | . 14 14 11 Protection 3 | . . . 9 Energy Gun 2 | . 3 . 4 Ballistic Gun 7 | . . 18 7 Launcher 1 | . . . 2 Impact Weapon 13 | . 23 9 5 Peak Build Rating 18 | 7 8 10 18 Average Rating 9 | 3 7 8 14 On Entrance 6 | . 7 7 10 Naked Turns . | . . . . Heaviest Build 38 | 13 30 30 38 Greatest Support 40 | 40 20 20 32 Greatest Overweight (x) 8 | . 8 2 3 Average Overweight (x) . | . . 1 . Largest Inventory Capacity 15 | 8 15 15 15 Average Capacity 14 | 7 13 15 15 Most Carried 15 | 3 12 12 15 Average Carried 9 | . 7 9 12 Final Capacity 15 | 8 15 15 15 Final Carried 14 | . 9 10 14 Class Distribution -------------------- 93% | Mutant 6% | Scavenger-Mutant Dominant Class ---------------- Mutant | -10/Materials Mutant | -10/Mines Mutant | -9/Materials Resources | -11 -10 -10 -9 ----------- Run | Yrd Mat Min Mat Matter Collected 882 | 67 371 32 412 Remotely . | . . . . Salvage Created 2326 | 26 913 113 1274 Parts 81 | 3 26 1 51 Haulers Intercepted 4 | . 2 . 2 Recyclers Shooed 2 | . 1 . 1 Parts Field Recycled . | . . . . Retrieved Matter . | . . . . Parts Self-Destructed . | . . . . Prevented . | . . . . Kills | -11 -10 -10 -9 ------- Run | Yrd Mat Min Mat Combat Hostiles Destroyed 42 | . 14 2 26 Melee 9 | . 4 1 4 Guns 19 | . 6 . 13 AOE 3 | . . . 3 Classes Destroyed 10 | 1 7 1 1 Worker 4 | . 2 . 2 Builder 1 | . . 1 . Tunneler 2 | 1 . 1 . Hauler 4 | . 2 . 2 Recycler 8 | . 4 . 4 Operator 2 | . 2 . . Watcher 3 | . 2 . 1 Swarmer 13 | . 6 . 7 Grunt 22 | . 8 2 12 Sentry 7 | . . . 7 Best Kill Streak 6 | 1 4 1 6 Combat Bots Only 4 | . 4 1 3 Max Kills in Single Turn 3 | 1 1 1 3 Gunslinging . | . . . . Exploded 1 | . . . 1 Melee 1 | . 1 1 1 Uniques/NPCs Destroyed . | . . . . Combat | -11 -10 -10 -9 -------- Run | Yrd Mat Min Mat Hostile Shots Fired 305 | . 66 12 227 Missed 79 | . 12 5 62 Hits 226 | . 54 7 165 Projectile 226 | . 54 7 165 Critical Strikes 1 | . . . 1 Damage Taken 2483 | . 590 103 1790 Core 567 | . 106 56 405 Absorbed by Shields . | . . . . Regen/Repaired (Parts) 83 | . . . 83 Core Remaining (%) 67 | 100 . 35 . Volleys Fired 109 | 2 37 1 69 Largest 2 | 2 2 2 2 Hottest 90 | 60 90 46 79 Shots Fired 196 | 4 67 2 123 Gun 190 | 4 67 2 117 Cannon . | . . . . Launcher 6 | . . . 6 Special . | . . . . Kinetic 87 | 2 6 2 77 Thermal 103 | 2 61 . 40 Explosive 6 | . . . 6 Electromagnetic . | . . . . Robot Hit Streak 11 | 1 5 . 11 Robot Miss Streak 6 | 1 6 . 4 Penetration Max . | . . . . Secondary Targets 1 | . 1 . . Max Gunslinging Chain 1 | . 1 . . Shots Hit Robots 185 | 2 69 9 105 Core Hits 57 | 2 19 2 34 Critical Kills 2 | . 1 . 1 Critical Parts Destroyed 13 | . 5 1 7 Critical Strikes 19 | . 7 1 11 Burn 4 | . 1 . 3 Smash 15 | . 6 1 8 Melee Attacks 84 | . 45 11 28 Impact 84 | . 45 11 28 Slashing . | . . . . Piercing . | . . . . Sneak Attacks 21 | . 14 3 4 Combat Hostiles 1 | . . 1 . Follow-up Attacks 6 | . 4 2 . Damage Inflicted 4740 | 16 1735 342 2647 Guns 1548 | 16 367 . 1165 Cannons . | . . . . Explosions 342 | . . . 342 Melee 2820 | . 1368 312 1140 Ramming 30 | . . 30 . Kinetic 796 | 16 34 . 746 Thermal 752 | . 333 . 419 Explosive 342 | . . . 342 Electromagnetic . | . . . . Impact 2820 | . 1368 312 1140 Slashing . | . . . . Piercing . | . . . . Highest Corruption . | . . . . Average Corruption . | . . . . Corruption Purged . | . . . . Corruption Blocked . | . . . . Overload Shots . | . . . . Overflow Damage 926 | . 397 103 426 Projectiles . | . . . . Explosions . | . . . . Melee 926 | . 397 103 426 Knockbacks 10 | . 6 3 1 Impact 10 | . 6 3 1 Kinetic . | . . . . Secondary . | . . . . Self-Inflicted Damage . | . . . . Shots . | . . . . Rammed . | . . . . Targets Rammed 8 | . . 8 . Kicked 8 | . . 8 . Crushed . | . . . . Highest Temperature 430 | 20 430 . 80 Average Temperature 151 | 15 208 . 18 Received Heat Transfer 825 | . 144 60 621 Effects 6 | . 6 . . Shutdowns 1 | . 1 . . Interference 3 | . 3 . . Matter Decay 1 | . 1 . . Short Circuit 1 | . 1 . . Siege Activations . | . . . . Martial Activations . | . . . . Shielding Activations . | . . . . Robots Disrupted . | . . . . Combat Hostiles . | . . . . Robots Corrupted 19 | . 11 3 5 Combat Hostiles 10 | . 4 1 5 Parts Fried 29 | . 16 7 6 Impact Corruptions 45 | . 22 6 17 Robots Melted 1 | . . . 1 Combat Hostiles 1 | . . . 1 Parts Melted 7 | . 5 . 2 Heat Transferred 2226 | . 931 . 1295 Parts Sabotaged . | . . . . Parts Stolen . | . . . . Parts Stripped . | . . . . Power Chain Reactions . | . . . . Alert | -11 -10 -10 -9 ------- Run | Yrd Mat Min Mat Maximum Alert Level . | . . . . Low Security (%) 100 | 100 100 100 100 Level 1 . | . . . . Level 2 . | . . . . Level 3 . | . . . . Level 4 . | . . . . Level 5 . | . . . . High Security . | . . . . Max Security . | . . . . Peak Influence 194 | 5 131 45 194 Initial 3 | . 3 . . Average 51 | . 35 3 99 Influence Increases 1369 | 5 477 75 812 Destroy 0b10 Robot/C 840 | . 280 40 520 Destroy 0b10 Robot/NC 120 | 5 60 10 45 Destroy Leader 204 | . 68 10 126 Trap Triggered on 0b10 10 | . . . 10 Successful Hack 43 | . 24 . 19 Disable Machine 30 | . 15 15 . Destroy Structure 17 | . . . 17 Lose Combat Pursuer 105 | . 30 . 75 Influence Decreases 1175 | . 481 76 618 Entered New Map 3 | . 2 1 . Time Decay 977 | . 444 65 468 Lost Part 195 | . 35 10 150 Squads Dispatched 6 | . 3 . 3 Investigation 4 | . 1 . 3 Extermination . | . . . . Reinforcement 2 | . 2 . . Assault . | . . . . Garrison . | . . . . Intercept . | . . . . Searches Triggered . | . . . . Construction Impeded . | . . . . Haulers Reinforced . | . . . . Active Scanning Responses . | . . . . Cargo Convoy Interrupts . | . . . . Stealth | -11 -10 -10 -9 --------- Run | Yrd Mat Min Mat Distress Signals 4 | . 2 . 2 Communications Jammed . | . . . . Distress Signals . | . . . . Times Spotted 69 | . 26 2 41 Peak Tracking Total 6 | . 4 2 6 Tactical Retreats 7 | . 2 . 5 Traps | -11 -10 -10 -9 ------- Run | Yrd Mat Min Mat Traps Triggered 7 | . 5 . 2 Indirectly . | . . . . Trap Hack Attempts . | . . . . Triggered . | . . . . Disarmed . | . . . . Reprogrammed . | . . . . Reused 1 | . . . 1 Traps Extracted . | . . . . Installed 1 | . . . 1 Triggered 1 | . . . 1 Most Traps Carried 3 | . . 3 3 Machines | -11 -10 -10 -9 ---------- Run | Yrd Mat Min Mat Machines Disabled 2 | . 1 1 . Max in Single Turn 1 | . 1 1 . Machines Repaired . | . . . . Machines Dismantled . | . . . . Machines Sabotaged . | . . . . Overloaded Fab Kills . | . . . . Hacking | -11 -10 -10 -9 --------- Run | Yrd Mat Min Mat Machines Accessed 12 | . 4 . 8 Terminals 9 | . 4 . 5 Fabricators . | . . . . Repair Stations 1 | . . . 1 Recycling Units 1 | . . . 1 Scanalyzers 1 | . . . 1 Garrison Access . | . . . . Total Hacks 32 | . 12 . 20 Successful 15 | . 5 . 10 Failed 17 | . 7 . 10 Catastrophic 4 | . 1 . 3 Database Lockouts . | . . . . Manual 22 | . 9 . 13 Terminals 27 | . 12 . 15 Fabricators . | . . . . Repair Stations 2 | . . . 2 Recycling Units 1 | . . . 1 Scanalyzers 2 | . . . 2 Garrison Access . | . . . . Terminal Hacks 3 | . 2 . 1 Branch Access Points 1 | . 1 . . Alert Level 1 | . . . 1 Locate Traps 1 | . 1 . . Fabricator Hacks . | . . . . Repair Station Hacks 2 | . . . 2 Scan Component 1 | . . . 1 Repair 1 | . . . 1 Recycling Unit Hacks . | . . . . Scanalyzer 2 | . . . 2 Insert Component 1 | . . . 1 Analyze 1 | . . . 1 Garrison Access Hacks . | . . . . Unauthorized Hacks 8 | . 3 . 5 Terminals 7 | . 3 . 4 Botnet 7 | . 3 . 4 Fabricators . | . . . . Repair Stations . | . . . . Recycling Units 1 | . . . 1 Recyclers 1 | . . . 1 Scanalyzers . | . . . . Garrison Access . | . . . . Data Cores Recovered . | . . . . Used . | . . . . Hacking Detections 9 | . 4 . 5 Full Trace Events 3 | . 1 . 2 Feedback Events . | . . . . Feedback Blocked . | . . . . Robot Schematics Acquired . | . . . . Robots Built . | . . . . Authchips . | . . . . Time . | . . . . Total Robot Build Rating . | . . . . Part Schematics Acquired 1 | . . . 1 Parts Built . | . . . . Authchips . | . . . . Time . | . . . . Total Part Build Rating . | . . . . Parts Repaired 1 | . . . 1 Time 32 | . . . 32 Parts Recycled . | . . . . Recycled Matter . | . . . . Retrieved Matter . | . . . . Retrieved Components . | . . . . Parts Scanalyzed 1 | . . . 1 Part Schematics Acquired 1 | . . . 1 Parts Damaged . | . . . . Bothacking | -11 -10 -10 -9 ------------ Run | Yrd Mat Min Mat Used RIF Installer . | . . . . Robots Hacked . | . . . . Non-combat . | . . . . Combat . | . . . . Robot Hacks Applied . | . . . . Relay Couplers Released . | . . . . Fabnet Peak Effective % . | . . . . Robots Rewired . | . . . . Allies Hacked . | . . . . Hacks Repelled . | . . . . Allies | -11 -10 -10 -9 -------- Run | Yrd Mat Min Mat Total Allies . | . . . . Largest Group . | . . . . Highest-Rated Group . | . . . . Highest-Rated Ally . | . . . . Total Orders . | . . . . Ally Attacks . | . . . . Total Damage . | . . . . Kills . | . . . . Allies Corrupted . | . . . . Allies Melted . | . . . . Intel | -11 -10 -10 -9 ------- Run | Yrd Mat Min Mat Active Infowar (turns) 3992 | 5 1579 917 1491 Structural 3758 | . 1350 917 1491 Seismic 397 | 5 229 . 163 Robot Analysis Total . | . . . . Derelict Logs Recovered . | . . . . Drone Launches . | . . . . Drone Recoveries . | . . . . Exploration | -11 -10 -10 -9 ------------- Run | Yrd Mat Min Mat Turns Passed 4151 | 74 1635 917 1525 Spaces Moved 1875 | 41 789 450 595 Core 8 | 6 2 . . Treads 10 | 10 . . . Legs 1857 | 25 787 450 595 Wheels . | . . . . Hover . | . . . . Flight . | . . . . Fastest Speed 50 | 50 120 190 120 Average Speed 180 | 119 171 191 189 Slowest Speed 450 | 160 450 260 330 Overloaded Moves . | . . . . Propulsion Burnouts . | . . . . Robots Hopped . | . . . . Potential Cave-ins . | . . . . Cave-ins Triggered . | . . . . Exploration Rate (%) 55 | 3 91 75 54 Regions Visited 3 Branch Regions 1 Pre-discovered Areas . | . . . . Known Exits Taken 1 | . 1 . . Unknown Exits Taken 2 | 1 . 1 . Scrap Searched 1 | . . 1 . Spaces Dug . | . . . . Terrain Destroyed 14 | . . . 14 Melee . | . . . . Projectile . | . . . . AOE 14 | . . . 14 Terrain Rammed . | . . . . Walls Destroyed . | . . . . Machines Disabled . | . . . . Actions | -11 -10 -10 -9 --------- Run | Yrd Mat Min Mat Total 2288 | 62 932 480 814 Wait 114 | . 30 . 84 Move 1872 | 40 788 449 595 Hop . | . . . . Pick Up 54 | 9 19 6 20 Fast Attach . | . . . . Attach 31 | 7 7 2 15 Detach . | . . . . Swap 10 | 2 6 2 . Drop 11 | 2 4 3 2 Fire 109 | 2 37 1 69 Melee 78 | . 41 9 28 Ram . | . . . . Kick 8 | . . 8 . Crush . | . . . . Escape Stasis . | . . . . Rewire . | . . . . Trap 1 | . . . 1 Miscellaneous . | . . . . Route ------- -11/Scrapyard -10/Materials (discovered 4 exits: *Mat x3 / *Min) -10/Mines (discovered 2 exits: *Mat / [Sub]) -9/Materials (discovered 2 exits: [*Mat x2]) History --------- Turn | Location | Event 15 | -11/Scrapyard | Discovered new exit (range 16) 75 | -11/Scrapyard | Entered Materials 189 | -10/Materials | Discovered new exit (range 12) 305 | -10/Materials | Build established: Mutant 496 | -10/Materials | Lost 3 parts (2p1n) 498 | -10/Materials | Discovered new exit (range 3) 736 | -10/Materials | Identified exit to Mines 887 | -10/Materials | Discovered new exit (range 8) 1540 | -10/Materials | Discovered new exit (range 8) 1710 | -10/Materials | Entered Mines 1714 | -10/Mines | Met a Derelict bent on vengeance 1721 | -10/Mines | Core integrity fell below 50% 1953 | -10/Mines | Found a hidden stash of uninstalled traps 2532 | -10/Mines | Discovered new exit (range 14) 2574 | -10/Mines | Discovered new exit (range 15) 2615 | -10/Mines | Assembled infested the area 2620 | -10/Mines | Assisted by a Guerilla fighting off Assembled 2627 | -10/Mines | Entered Materials 2627 | -9/Materials | Evolved 2 slots: Utility x2 3096 | -9/Materials | Discovered new exit (range 3) 3452 | -9/Materials | Lost 7 parts (1p2n2u2w) 3586 | -9/Materials | Core integrity fell below 50% 3778 | -9/Materials | Discovered new exit (range 16) 3931 | -9/Materials | Repaired Imp. Aluminum Leg 4147 | -9/Materials | Core integrity fell below 20% 4152 | -9/Materials | Destroyed by G-34 Mercenary with Small Laser Last Messages --------------- 04117_ S-10 Pest IFF system glitched. 04118_ S-10 Pest system terminally corrupted. 04118_ Lgt. Assault Rifle fried. 04118_ Flight Unit fried. 04118_ Structural Scanner destroyed. 04128_ Lgt. Armor Plating destroyed. 04133_ W-16 Scout sends out distress signal. 04136_ Destroyed Lgt. Ion Engine. 04136_ S-10 Pest system corrupted by crushing effect. 04143_ S-10 Pest suffers critical hit (Smash). 04143_ Destroyed Lgt. Assault Rifle. 04143_ Destroyed Flight Unit. 04143_ S-10 Pest system corrupted by crushing effect. 04143_ S-10 Pest destroyed. 04144_ Imp. Ion Engine destroyed. 04151_ S-10 Pest suffers critical hit (Smash). 04151_ Destroyed Flight Unit. 04151_ Destroyed Lgt. Ion Engine. 04151_ S-10 Pest system corrupted by crushing effect. 04152_ S-10 Pest system terminally corrupted. Map ----- +----------------------------------------------------+ | ????????????????????????????????? # ??????? ## | | ?????????????????????????????????? # ??????? ## | | ?????????????????????????????????? + ??????? + | | ????????????????????????????????? # ??????? ## | | ?????????????????????????????????## # ??????? ## | | ?????????????????????????????????## # ## | | ?????????????????????????????????## ############ | | ?????????????????????????????????## / # | | ??????????????????????????????##### ## # | | ??????????????????????????????######+### # | | ????????????????????############ # # | | ????????????????????############ ] [[# # | | ????????????????????## ## ![*+ # | | ????????????????????## "## %[[ # # | | ????????????????????## = T####+##### # | | ????????????????????## "# ##########+### | | ???????????????????? # """ # | | ???????????????????? # """"" + | | ???????????????????? # """"" # % | | ???????????????????????""""" # ***###### ###/### | | ??????????????????????? """ ## %##### # | | ???????????????????????######### ##### # | | ???????????????? # ############# ##?## # | | ???????????????? # ############# w ##?## # | | ???????????????? # % g ##?## # | | ???????????????? + @ % g ##?## # | | ???????????????? # % % g ##?## # | | ???????????????? ##########%############ # | | ???????????????? ##########r###################### | | ?????????????????????????## ### ######## | | ?????????????????????????## ###!! """ # ^ ^ | | ?????????????????????????## ###!! """ # ^ | | ?????????????????????????## ## ! """ # """" | | ???????########?########### ### =#^ ""T" | | ???????########?########### ### ? # | | ???????## ##?## # # # | | ???????## ##?## # #######+##### [ | | ???????## ##?## """ + | | ???????## ##?## """ # ###### | | ???????## ##?## """ # ###### | | ???????## ##?## ## ###############+##### | | ???????## ##?######+### # ### # | | ######### ######## + ### # | | ######### ######## # ### # | | # ###=! # | | ########+#########+####### ###!! # | | ##### # # ### # | | ##?## # **! ????? ### # | | ######?## # ** # ? ### # | | ######?## ""T"" # *! ! # ? ### # | +----------------------------------------------------+ Best States ------------- Heat Dissipation 38 Energy Generation 12 Energy Capacity 265 Matter Stores 300 Matter Capacity 300 Sight Range 16 Terrain Scan Density 10 Additional Mass Support 6 Armor Coverage 150 Evasion (%) 55 Recoil Reduction 2 Item Schematics ----------------- Imp. Flight Unit | -9/Materials | Scanalyzed Robot Schematics ------------------ None Fabricated ------------ Nothing Repaired ---------- Imp. Aluminum Leg | 17% | -9/Materials Alien Tech Used ----------------- None Achievements -------------- None Challenges ------------ None Game ------ Seed PlexusActiveBay Manual? 0 Play Time 00:37:29 Cumulative 33.9 hours Start 2025.06.16 @ 20:03:38 End 2025.06.16 @ 21:00:09 Sessions 1 Manual Loads 0 Difficulty Rogue Special Mode None Game No. 42 Rogue 42 Adventurer 0 Explorer 0 Win Type - Total 1 Types 1/0/0/0/0/0/0/0/0/0 Lore% 18 Gallery% 27 Achievement% 31 Wizard Run 0 Options --------- Layout 0 ASCII 0 Keyboard 0 Movement Numpad Keybinds 0 Fullscreen 1 Font 24/Smallcaps Map View 76x50 Zoom Use 0% Tactical HUD 1 Map Filters NONE Filters NONE Steam 1 RUN: f0e4cbad-1bbb-4dbd-b98c-8b619dd297c0